[Event "7° Rencontres Internationales des Echecs Francophones"]
[Site "PARIS, France"]
[Date "2019.08.10"]
[Round "7.1"]
[White "Moussard, Jules"]
[Black "Gurevich, Mikhail"]
[Result "1/2-1/2"]
[TimeControl "90'+30' + 30seconds/move"]
[WhiteElo "2613"]
[BlackElo "2559"]

1. e4 {[%clk 00:05:03]} {[%emt 00:00:03]} d6 {[%clk 00:05:05]} {[%emt
00:00:02]} 2. d4 {[%clk 00:04:59]} {[%emt 00:00:06]} Nf6 {[%clk 00:05:07]} 3.
Nc3 {[%clk 00:05:01]} g6 {[%clk 00:05:09]} 4. f4 {[%clk 00:04:53]} {[%emt
00:00:13]} Bg7 {[%clk 00:05:11]} {[%emt 00:00:01]} 5. Nf3 {[%clk 00:04:55]}
{[%emt 00:00:01]} c5 {[%clk 00:05:13]} 6. Bb5+ {[%clk 00:04:16]} {[%emt
00:00:43]} Bd7 {[%clk 00:05:14]} {[%emt 00:00:01]} 7. e5 {[%clk 00:04:18]}
{[%emt 00:00:02]} Ng4 {[%clk 00:05:15]} {[%emt 00:00:02]} 8. e6 {[%clk
00:03:28]} {[%emt 00:00:53]} Bxb5 {[%clk 00:05:14]} {[%emt 00:00:04]} 9. exf7+
{[%clk 00:03:18]} {[%emt 00:00:13]} Kf8 {[%clk 00:05:15]} {[%emt 00:00:01]} 10.
Nxb5 {[%clk 00:02:43]} {[%emt 00:00:39]} Qa5+ {[%clk 00:05:16]} {[%emt
00:00:01]} 11. Nc3 {[%clk 00:02:36]} {[%emt 00:00:10]} cxd4 {[%clk 00:05:17]}
{[%emt 00:00:03]} 12. Nxd4 {[%clk 00:02:29]} {[%emt 00:00:10]} Kxf7 {[%clk
00:05:10]} {[%emt 00:00:10]} 13. Qxg4 {[%clk 00:02:25]} {[%emt 00:00:07]} Bxd4
{[%clk 00:05:00]} {[%emt 00:00:13]} 14. Bd2 {[%clk 00:02:27]} Qf5 {[%clk
00:04:34]} {[%emt 00:00:28]} 15. Qe2 {[%clk 00:02:29]} {[%emt 00:00:02]} Qe6
{[%clk 00:02:20]} {[%emt 00:02:17]} 16. Ne4 {[%clk 00:02:23]} {[%emt 00:00:08]}
h6 {[%clk 00:02:09]} {[%emt 00:00:14]} 17. c3 {[%clk 00:02:02]} {[%emt
00:00:25]} d5 {[%clk 00:01:56]} {[%emt 00:00:16]} 18. cxd4 {[%clk 00:01:33]}
{[%emt 00:00:32]} Qxe4 {[%clk 00:01:57]} {[%emt 00:00:02]} 19. Qxe4 {[%clk
00:01:35]} {[%emt 00:00:01]} dxe4 {[%clk 00:01:58]} {[%emt 00:00:01]} 20. Rc1
{[%clk 00:01:38]} Rd8 {[%clk 00:01:19]} {[%emt 00:00:43]} 21. f5 {[%clk
00:01:26]} {[%emt 00:00:15]} Nc6 {[%clk 00:01:11]} {[%emt 00:00:11]} 22. Rf1
{[%clk 00:01:17]} {[%emt 00:00:11]} Nxd4 {[%clk 00:01:07]} {[%emt 00:00:07]} 23.
fxg6+ {[%clk 00:01:19]} {[%emt 00:00:02]} Kxg6 {[%clk 00:01:09]} {[%emt
00:00:01]} 24. Rf4 {[%clk 00:01:11]} {[%emt 00:00:11]} Rd6 {[%clk 00:00:36]}
{[%emt 00:00:36]} 25. Rxe4 {[%clk 00:01:03]} {[%emt 00:00:10]} Re6 {[%clk
00:00:36]} {[%emt 00:00:04]} 26. Rxe6+ {[%clk 00:01:04]} {[%emt 00:00:02]} Nxe6
{[%clk 00:00:38]} 27. Rc4 {[%clk 00:01:03]} {[%emt 00:00:04]} h5 {[%clk
00:00:33]} {[%emt 00:00:08]} 28. Be3 {[%clk 00:01:02]} {[%emt 00:00:04]} a6
{[%clk 00:00:30]} {[%emt 00:00:06]} 29. a4 {[%clk 00:01:04]} Rd8 {[%clk
00:00:32]} {[%emt 00:00:02]} 30. Ke2 {[%clk 00:00:57]} {[%emt 00:00:10]} Rd5
{[%clk 00:00:33]} {[%emt 00:00:02]} 31. b4 {[%clk 00:00:51]} {[%emt 00:00:09]}
Kf7 {[%clk 00:00:34]} {[%emt 00:00:03]} 32. Rc8 {[%clk 00:00:50]} {[%emt
00:00:03]} Rd8 {[%clk 00:00:27]} {[%emt 00:00:10]} 33. Rc4 {[%clk 00:00:46]}
{[%emt 00:00:07]} b5 {[%clk 00:00:23]} {[%emt 00:00:07]} 34. axb5 {[%clk
00:00:14]} {[%emt 00:00:35]} axb5 {[%clk 00:00:25]} {[%emt 00:00:01]} 35. Re4
{[%clk 00:00:08]} {[%emt 00:00:09]} Rd5 {[%clk 00:00:26]} {[%emt 00:00:02]} 36.
h3 {[%clk 00:00:08]} {[%emt 00:00:03]} Rf5 {[%clk 00:00:24]} {[%emt 00:00:05]}
37. g4 {[%clk 00:00:07]} {[%emt 00:00:04]} hxg4 {[%clk 00:00:25]} 38. Rxg4
{[%clk 00:00:10]} Re5 {[%clk 00:00:22]} {[%emt 00:00:07]} 39. Kd3 {[%clk
00:00:12]} Rd5+ {[%clk 00:00:19]} {[%emt 00:00:06]} 40. Ke4 {[%clk 00:00:14]}
Rd1 {[%clk 00:00:21]} {[%emt 00:00:01]} 41. h4 {[%clk 00:00:15]} {[%emt
00:00:02]} Rb1 {[%clk 00:00:22]} {[%emt 00:00:02]} 42. Kd3 {[%clk 00:00:17]}
{[%emt 00:00:01]} Rh1 {[%clk 00:00:22]} {[%emt 00:00:03]} 43. Ke4 {[%clk
00:00:17]} {[%emt 00:00:03]} Re1 {[%clk 00:00:20]} {[%emt 00:00:04]} 44. h5
{[%clk 00:00:17]} {[%emt 00:00:03]} Rh1 {[%clk 00:00:16]} {[%emt 00:00:07]} 45.
h6 {[%clk 00:00:19]} {[%emt 00:00:01]} Rh3 {[%clk 00:00:16]} {[%emt 00:00:03]}
46. Rg1 {[%clk 00:00:21]} {[%emt 00:00:02]} Rh4+ {[%clk 00:00:15]} {[%emt
00:00:04]} 47. Kd5 {[%clk 00:00:13]} {[%emt 00:00:11]} Nf4+ {[%clk 00:00:16]}
{[%emt 00:00:02]} 48. Kc6 {[%clk 00:00:15]} {[%emt 00:00:01]} Rxh6+ {[%clk
00:00:15]} {[%emt 00:00:05]} 49. Kxb5 {[%clk 00:00:17]} Rh5+ {[%clk 00:00:16]}
{[%emt 00:00:01]} 50. Ka6 {[%clk 00:00:19]} {[%emt 00:00:02]} Nd5 {[%clk
00:00:18]} {[%emt 00:00:01]} 51. Bc5 {[%clk 00:00:19]} {[%emt 00:00:03]} Rh6+
{[%clk 00:00:18]} {[%emt 00:00:04]} 52. Kb7 {[%clk 00:00:21]} Nxb4 {[%clk
00:00:15]} {[%emt 00:00:06]} 53. Bxb4 {[%clk 00:00:21]} {[%emt 00:00:02]} Re6
{[%clk 00:00:17]} 54. Kc7 {[%clk 00:00:22]} {[%emt 00:00:03]} Re4 {[%clk
00:00:18]} {[%emt 00:00:01]} 55. Rf1 {[%clk 00:00:22]} {[%emt 00:00:02]} Ke8
{[%clk 00:00:16]} {[%emt 00:00:05]} 56. Bc5 {[%clk 00:00:25]} {[%emt 00:00:01]}
Re2 {[%clk 00:00:18]} {[%emt 00:00:02]} 57. Kc6 {[%clk 00:00:26]} {[%emt
00:00:02]} Re6+ {[%clk 00:00:19]} 58. Kd5 {[%clk 00:00:28]} Re2 {[%clk
00:00:21]} 59. Bd4 {[%clk 00:00:30]} {[%emt 00:00:01]} Ra2 {[%clk 00:00:22]}
{[%emt 00:00:01]} 60. Re1 {[%clk 00:00:22]} {[%emt 00:00:11]} Rd2 {[%clk
00:00:18]} {[%emt 00:00:08]} 61. Ra1 {[%clk 00:00:15]} {[%emt 00:00:10]} Kf7
{[%clk 00:00:18]} {[%emt 00:00:02]} 62. Rf1+ {[%clk 00:00:17]} {[%emt
00:00:01]} Ke8 {[%clk 00:00:21]} 63. Rf4 {[%clk 00:00:18]} {[%emt 00:00:03]}
Rd1 {[%clk 00:00:22]} {[%emt 00:00:02]} 64. Ke6 {[%clk 00:00:20]} {[%emt
00:00:02]} Re1+ {[%clk 00:00:23]} {[%emt 00:00:01]} 65. Be5 {[%clk 00:00:22]}
Rb1 {[%clk 00:00:25]} 66. Ra4 {[%clk 00:00:18]} {[%emt 00:00:06]} Rb6+ {[%clk
00:00:26]} {[%emt 00:00:02]} 67. Kd5 {[%clk 00:00:21]} Kf7 {[%clk 00:00:28]}
{[%emt 00:00:02]} 68. Bd4 {[%clk 00:00:19]} {[%emt 00:00:05]} Rd6+ {[%clk
00:00:29]} {[%emt 00:00:02]} 69. Ke5 {[%clk 00:00:21]} {[%emt 00:00:01]} Re6+
{[%clk 00:00:32]} 70. Kf5 Rd6 {[%emt 00:00:02]} 71. Ke4 {[%clk 00:00:20]}
{[%emt 00:00:06]} Re6+ {[%clk 00:00:36]} 72. Be5 {[%clk 00:00:23]} Rc6 {[%clk
00:00:37]} 73. Kd5 {[%clk 00:00:24]} {[%emt 00:00:02]} Rc1 {[%clk 00:00:37]}
{[%emt 00:00:03]} 74. Rh4 {[%clk 00:00:25]} {[%emt 00:00:02]} Rd1+ {[%clk
00:00:38]} {[%emt 00:00:01]} 75. Bd4 {[%clk 00:00:28]} Re1 {[%clk 00:00:39]}
{[%emt 00:00:02]} 76. Rh7+ {[%clk 00:00:30]} Ke8 {[%clk 00:00:41]} {[%emt
00:00:02]} 77. Bc3 {[%clk 00:00:17]} {[%emt 00:00:15]} Re2 {[%clk 00:00:41]}
{[%emt 00:00:04]} 78. Be5 {[%clk 00:00:14]} {[%emt 00:00:07]} Kd7 {[%clk
00:00:42]} {[%emt 00:00:02]} 79. Rh8 {[%clk 00:00:15]} {[%emt 00:00:02]} Rd2+
{[%clk 00:00:42]} {[%emt 00:00:02]} 80. Bd4 {[%clk 00:00:18]} Re2 {[%clk
00:00:44]} {[%emt 00:00:03]} 81. Bb6 {[%clk 00:00:19]} {[%emt 00:00:01]} Rd2+
{[%clk 00:00:44]} {[%emt 00:00:03]} 82. Ke4 {[%clk 00:00:21]} Rb2 {[%clk
00:00:44]} {[%emt 00:00:03]} 83. Rd8+ {[%clk 00:00:22]} {[%emt 00:00:03]} Ke6
{[%clk 00:00:46]} 84. Bd4 {[%clk 00:00:24]} {[%emt 00:00:02]} Rb1 {[%clk
00:00:47]} {[%emt 00:00:02]} 85. Bc3 {[%clk 00:00:24]} {[%emt 00:00:03]} Rb7
{[%clk 00:00:47]} {[%emt 00:00:03]} 86. Rh8 {[%clk 00:00:14]} {[%emt 00:00:13]}
Rc7 {[%clk 00:00:49]} 87. Rh6+ {[%clk 00:00:14]} {[%emt 00:00:02]} Kd7 {[%clk
00:00:51]} {[%emt 00:00:02]} 88. Bd4 {[%clk 00:00:13]} {[%emt 00:00:04]} Rc6
{[%clk 00:00:53]} {[%emt 00:00:01]} 89. Rh7 {[%clk 00:00:10]} {[%emt 00:00:06]}
Re6+ {[%clk 00:00:54]} {[%emt 00:00:01]} 90. Kf5 {[%clk 00:00:12]} Rd6 {[%clk
00:00:56]} 91. Bg7 {[%clk 00:00:12]} {[%emt 00:00:04]} Ke8 {[%clk 00:00:52]}
{[%emt 00:00:07]} 92. Bh6 {[%clk 00:00:13]} {[%emt 00:00:02]} Rf6+ {[%clk
00:00:53]} {[%emt 00:00:02]} 93. Kg5 {[%clk 00:00:15]} Ra6 {[%clk 00:00:51]}
{[%emt 00:00:06]} 94. Kh5 {[%clk 00:00:16]} {[%emt 00:00:02]} Re6 {[%clk
00:00:50]} {[%emt 00:00:03]} 95. Bg5 {[%clk 00:00:17]} {[%emt 00:00:02]} Kd7
{[%clk 00:00:52]} {[%emt 00:00:02]} 96. Rh8 {[%clk 00:00:14]} {[%emt 00:00:06]}
Kc7 {[%clk 00:00:52]} {[%emt 00:00:02]} 97. Kg4 {[%clk 00:00:15]} {[%emt
00:00:03]} Kd7 {[%clk 00:00:54]} 98. Kf5 {[%clk 00:00:16]} {[%emt 00:00:01]}
Ra6 {[%clk 00:00:52]} {[%emt 00:00:06]} 99. Be3 {[%clk 00:00:12]} {[%emt
00:00:06]} Rf6+ {[%clk 00:00:53]} {[%emt 00:00:02]} 100. Ke5 {[%emt 00:00:01]}
Re6+ 101. Kd4 {[%clk 00:00:16]} Rd6+ {[%clk 00:00:58]} 102. Kc4 {[%clk
00:00:18]} Re6 {[%clk 00:01:00]} {[%emt 00:00:02]} 103. Bc5 {[%clk 00:00:20]}
{[%emt 00:00:01]} Re4+ {[%clk 00:01:02]} {[%emt 00:00:02]} 104. Kb5 {[%clk
00:00:23]} Re1 {[%clk 00:01:03]} {[%emt 00:00:02]} 105. Ka6 {[%clk 00:00:24]}
{[%emt 00:00:02]} Ra1+ {[%clk 00:01:03]} {[%emt 00:00:02]} 106. Kb7 {[%clk
00:00:26]} {[%emt 00:00:01]} Rb1+ {[%clk 00:01:05]} {[%emt 00:00:01]} 107. Bb6
{[%clk 00:00:29]} Rc1 {[%clk 00:01:05]} {[%emt 00:00:02]} 108. Rd8 {[%clk
00:00:31]} {[%emt 00:00:02]} Ke6 {[%clk 00:01:07]} 109. Bc7 {[%clk 00:00:33]}
Rc2 {[%clk 00:01:06]} {[%emt 00:00:04]} 110. Kc8 {[%clk 00:00:35]} {[%emt
00:00:01]} Kf7 {[%clk 00:01:06]} {[%emt 00:00:03]} 111. Rd3 {[%clk 00:00:35]}
{[%emt 00:00:03]} Ke8 {[%clk 00:01:02]} {[%emt 00:00:08]} 112. Rh3 {[%clk
00:00:27]} {[%emt 00:00:11]} Rd2 {[%clk 00:00:59]} {[%emt 00:00:05]} 113. Rh8
{[%clk 00:00:25]} {[%emt 00:00:05]} Kf7 {[%clk 00:01:01]} 114. Ba5 {[%clk
00:00:26]} {[%emt 00:00:03]} Rd4 {[%clk 00:00:53]} {[%emt 00:00:11]} 115. Bd8
{[%clk 00:00:17]} {[%emt 00:00:12]} Rc4+ {[%clk 00:00:49]} {[%emt 00:00:07]}
116. Kd7 {[%clk 00:00:17]} {[%emt 00:00:03]} Rd4+ {[%clk 00:00:51]} {[%emt
00:00:01]} 117. Kc6 {[%clk 00:00:19]} Re4 {[%clk 00:00:38]} {[%emt 00:00:15]}
118. Kd5 {[%clk 00:00:13]} {[%emt 00:00:10]} Re1 {[%clk 00:00:37]} {[%emt
00:00:03]} 119. Kc6 {[%clk 00:00:10]} {[%emt 00:00:07]} Rc1+ {[%clk 00:00:32]}
{[%emt 00:00:07]} 120. Kd7 {[%clk 00:00:10]} {[%emt 00:00:03]} Rd1+ {[%clk
00:00:34]} {[%emt 00:00:01]} 121. Kc8 {[%clk 00:00:11]} {[%emt 00:00:01]} Re1
{[%clk 00:00:34]} {[%emt 00:00:03]} 122. Rh7+ {[%clk 00:00:12]} {[%emt
00:00:02]} Ke8 {[%clk 00:00:36]} {[%emt 00:00:01]} 123. Rxe7 {[%clk 00:00:13]}
{[%emt 00:00:03]} Rxe7 {[%clk 00:00:37]} {[%emt 00:00:02]} 124. Bxe7 {[%clk
00:00:13]} {[%emt 00:00:03]} Kxe7 {[%emt 00:00:07]} 1/2-1/2

[Event "7° Rencontres Internationales des Echecs Francophones"]
[Site "PARIS, France"]
[Date "2019.08.10"]
[Round "7.2"]
[White "David, Alberto"]
[Black "Flom, Gabriel"]
[Result "1/2-1/2"]
[TimeControl "90'+30' + 30seconds/move"]
[WhiteElo "2554"]
[BlackElo "2355"]

1. e4 {[%clk 00:05:05]} e6 {[%clk 00:05:06]} 2. d3 {[%clk 00:05:06]} {[%emt
00:00:02]} d5 {[%clk 00:05:00]} {[%emt 00:00:09]} 3. Qe2 {[%clk 00:05:08]} Nc6
{[%clk 00:05:02]} {[%emt 00:00:01]} 4. Nf3 {[%clk 00:05:09]} {[%emt 00:00:02]}
Nf6 {[%clk 00:05:02]} {[%emt 00:00:03]} 5. e5 {[%clk 00:05:03]} {[%emt
00:00:09]} Nd7 {[%clk 00:05:04]} {[%emt 00:00:01]} 6. g3 {[%clk 00:05:05]} f6
{[%clk 00:04:53]} {[%emt 00:00:15]} 7. exf6 {[%clk 00:05:04]} {[%emt 00:00:03]}
Qxf6 {[%clk 00:04:55]} {[%emt 00:00:02]} 8. Bg2 {[%clk 00:05:05]} {[%emt
00:00:02]} Bd6 {[%clk 00:04:44]} {[%emt 00:00:14]} 9. O-O {[%clk 00:05:03]}
{[%emt 00:00:04]} O-O {[%clk 00:04:46]} {[%emt 00:00:01]} 10. c4 {[%clk
00:04:59]} {[%emt 00:00:08]} Nde5 {[%clk 00:03:04]} {[%emt 00:01:44]} 11. Nbd2
{[%clk 00:04:57]} {[%emt 00:00:05]} Nxf3+ {[%clk 00:02:18]} {[%emt 00:00:50]}
12. Nxf3 {[%clk 00:04:56]} {[%emt 00:00:03]} Bd7 {[%clk 00:02:21]} {[%emt
00:00:01]} 13. Bg5 {[%clk 00:04:08]} {[%emt 00:00:51]} Qg6 {[%clk 00:02:13]}
{[%emt 00:00:11]} 14. Be3 {[%clk 00:04:09]} {[%emt 00:00:02]} Rae8 {[%clk
00:02:05]} {[%emt 00:00:10]} 15. c5 {[%clk 00:03:02]} {[%emt 00:01:10]} Be5
{[%clk 00:01:50]} {[%emt 00:00:18]} 16. Rad1 {[%clk 00:02:14]} {[%emt
00:00:51]} Bf6 {[%clk 00:01:35]} {[%emt 00:00:18]} 17. d4 {[%clk 00:02:15]}
{[%emt 00:00:02]} Ne7 {[%clk 00:01:28]} {[%emt 00:00:11]} 18. Bf4 {[%clk
00:02:12]} {[%emt 00:00:05]} c6 {[%clk 00:01:01]} {[%emt 00:00:30]} 19. Ne5
{[%clk 00:01:59]} {[%emt 00:00:16]} Bxe5 {[%clk 00:01:01]} {[%emt 00:00:04]} 20.
Bxe5 {[%clk 00:01:59]} {[%emt 00:00:03]} Nf5 {[%clk 00:00:53]} {[%emt
00:00:12]} 21. Rfe1 {[%clk 00:01:59]} {[%emt 00:00:02]} Nh6 {[%clk 00:00:37]}
{[%emt 00:00:19]} 22. Bf3 {[%clk 00:01:30]} {[%emt 00:00:32]} Rf5 {[%clk
00:00:31]} {[%emt 00:00:08]} 23. Bg2 {[%clk 00:01:18]} {[%emt 00:00:15]} Nf7
{[%clk 00:00:30]} {[%emt 00:00:04]} 24. f4 {[%clk 00:01:05]} {[%emt 00:00:16]}
Nxe5 {[%clk 00:00:26]} {[%emt 00:00:07]} 25. dxe5 {[%clk 00:01:07]} {[%emt
00:00:02]} h5 {[%clk 00:00:26]} {[%emt 00:00:02]} 26. Be4 {[%clk 00:01:03]}
{[%emt 00:00:07]} dxe4 {[%clk 00:00:20]} {[%emt 00:00:10]} 27. Rxd7 {[%clk
00:01:05]} Rxf4 {[%clk 00:00:22]} {[%emt 00:00:01]} 28. Rxb7 {[%clk 00:01:06]}
{[%emt 00:00:02]} h4 {[%clk 00:00:17]} {[%emt 00:00:09]} 29. Rb3 {[%clk
00:01:06]} {[%emt 00:00:02]} Ref8 {[%clk 00:00:16]} {[%emt 00:00:04]} 30. Re3
{[%clk 00:01:01]} {[%emt 00:00:07]} Rf2 {[%clk 00:00:06]} {[%emt 00:00:14]} 31.
Qxf2 {[%clk 00:01:02]} {[%emt 00:00:02]} Rxf2 {[%clk 00:00:08]} 32. Kxf2 {[%emt
00:00:02]} hxg3+ 33. hxg3 {[%clk 00:00:57]} {[%emt 00:00:09]} Qf5+ {[%clk
00:00:13]} 34. Kg2 {[%clk 00:00:58]} {[%emt 00:00:02]} Qxe5 {[%clk 00:00:16]}
35. R1e2 {[%clk 00:00:59]} {[%emt 00:00:01]} Qd5 {[%clk 00:00:14]} {[%emt
00:00:05]} 36. Rxe4 {[%clk 00:00:58]} {[%emt 00:00:04]} Qxa2 {[%clk 00:00:13]}
{[%emt 00:00:05]} 37. Rxe6 {[%clk 00:00:27]} {[%emt 00:00:33]} Qd5+ {[%clk
00:00:15]} {[%emt 00:00:01]} 38. Kh2 {[%clk 00:00:28]} {[%emt 00:00:02]} Qh5+
{[%clk 00:00:17]} {[%emt 00:00:01]} 39. Kg2 {[%clk 00:00:30]} Qd5+ {[%clk
00:00:19]} 40. Kh2 {[%emt 00:00:06]} Qh5+ 41. Kg2 {[%clk 00:00:28]} {[%emt
00:00:02]} 1/2-1/2

[Event "7° Rencontres Internationales des Echecs Francophones"]
[Site "PARIS, France"]
[Date "2019.08.10"]
[Round "7.6"]
[White "Vuilleumier, Alexandre"]
[Black "Ider, Borya"]
[Result "0-1"]
[TimeControl "90'+30' + 30seconds/move"]
[WhiteElo "2324"]
[BlackElo "2492"]

1. Nf3 {[%clk 00:05:05]} e6 {[%clk 00:05:04]} {[%emt 00:00:03]} 2. d4 {[%clk
00:05:07]} {[%emt 00:00:01]} Nf6 {[%clk 00:05:05]} {[%emt 00:00:02]} 3. Bf4
{[%clk 00:05:08]} {[%emt 00:00:02]} d5 {[%clk 00:05:02]} {[%emt 00:00:06]} 4.
e3 {[%clk 00:05:08]} {[%emt 00:00:03]} Bd6 {[%clk 00:05:03]} {[%emt 00:00:02]}
5. Bg3 {[%clk 00:05:10]} {[%emt 00:00:02]} Nbd7 {[%clk 00:05:00]} {[%emt
00:00:07]} 6. Bd3 {[%clk 00:05:10]} {[%emt 00:00:03]} Qe7 {[%clk 00:05:00]}
{[%emt 00:00:03]} 7. O-O {[%clk 00:05:09]} {[%emt 00:00:03]} e5 {[%clk
00:05:01]} {[%emt 00:00:03]} 8. dxe5 {[%clk 00:04:01]} {[%emt 00:01:11]} Nxe5
{[%clk 00:05:02]} {[%emt 00:00:02]} 9. Nxe5 {[%clk 00:04:03]} {[%emt 00:00:02]}
Bxe5 {[%clk 00:05:03]} {[%emt 00:00:01]} 10. Qc1 {[%clk 00:04:00]} {[%emt
00:00:06]} O-O {[%clk 00:05:01]} {[%emt 00:00:05]} 11. c4 {[%clk 00:04:00]}
{[%emt 00:00:03]} dxc4 {[%clk 00:04:56]} {[%emt 00:00:07]} 12. Bxc4 {[%clk
00:04:01]} {[%emt 00:00:02]} Bf5 {[%clk 00:04:52]} {[%emt 00:00:07]} 13. Nc3
{[%clk 00:03:59]} {[%emt 00:00:05]} c6 {[%clk 00:04:53]} {[%emt 00:00:02]} 14.
e4 {[%clk 00:02:30]} {[%emt 00:01:32]} Bg6 {[%clk 00:03:51]} {[%emt 00:01:06]}
15. Qe3 {[%clk 00:02:29]} {[%emt 00:00:04]} Rfe8 {[%clk 00:03:41]} {[%emt
00:00:12]} 16. Rfe1 {[%clk 00:02:21]} {[%emt 00:00:11]} Ng4 {[%clk 00:03:35]}
{[%emt 00:00:10]} 17. Qf3 {[%clk 00:02:08]} {[%emt 00:00:16]} Bxg3 {[%clk
00:03:34]} {[%emt 00:00:04]} 18. Qxg3 {[%clk 00:02:08]} {[%emt 00:00:03]} Ne5
{[%clk 00:03:12]} {[%emt 00:00:25]} 19. Bb3 {[%clk 00:02:10]} Rad8 {[%clk
00:03:10]} {[%emt 00:00:04]} 20. Rad1 {[%clk 00:02:12]} {[%emt 00:00:01]} Bh5
{[%clk 00:02:58]} {[%emt 00:00:15]} 21. f3 {[%clk 00:01:56]} {[%emt 00:00:20]}
Qc5+ {[%clk 00:02:50]} {[%emt 00:00:11]} 22. Kf1 {[%clk 00:01:00]} {[%emt
00:00:58]} Nd3 {[%clk 00:02:47]} {[%emt 00:00:06]} 23. Na4 {[%clk 00:00:23]}
{[%emt 00:00:41]} Qb4 {[%clk 00:02:16]} {[%emt 00:00:34]} 24. Re2 {[%clk
00:00:18]} {[%emt 00:00:08]} b5 {[%clk 00:02:14]} {[%emt 00:00:05]} 25. Nc3
{[%clk 00:00:12]} {[%emt 00:00:09]} Nxb2 {[%clk 00:02:13]} {[%emt 00:00:04]} 26.
Rxb2 {[%clk 00:00:12]} {[%emt 00:00:03]} Qxc3 {[%clk 00:02:12]} {[%emt
00:00:04]} 27. Rbb1 {[%clk 00:00:08]} {[%emt 00:00:08]} c5 {[%clk 00:01:59]}
{[%emt 00:00:15]} 28. Rbc1 {[%clk 00:00:07]} {[%emt 00:00:04]} Rxd1+ {[%clk
00:01:59]} {[%emt 00:00:03]} 29. Rxd1 {[%clk 00:00:08]} {[%emt 00:00:02]} c4
{[%clk 00:02:01]} 30. Qh4 {[%clk 00:00:06]} {[%emt 00:00:05]} cxb3 {[%clk
00:01:01]} {[%emt 00:01:02]} 31. Rd8 {[%clk 00:00:08]} {[%emt 00:00:02]} f6
{[%clk 00:00:59]} {[%emt 00:00:05]} 0-1